Workbook

Sheet CN-26-02-2026
A1: ITEM NO | F1: QUANTITY | G1: RATE | H1: AMOUNT
C3: SECTION NO.1
C5: BILL NO. 1
C7: PRELIMINARIES AND GENERAL
C9: BUILDING AGREEMENT AND PRELIMINARIES
C11: The JBCC Principal Building Agreement (Edition 6.2 - May 2018) prepared by the Joint Building Contracts Committee shall be the applicable building agreement, amended as hereinafter described
C13: The JBCC Principal Building Agreement contract data form an integral part of this agreement
C15: The JBCC General Preliminaries (May 2018) published by the Joint Building Contracts Committee for use with the JBCC Principal Building Agreement (Edition 6.2 - May 2018) shall be deemed to be incorporated in these bills of quantities, amended as hereinafter described
C17: The contractor is deemed to have referred to the abovementioned documents for the full intent and meaning of each clause
C19: The clauses in the abovementioned documents are hereinafter referred to by clause number and heading only
C21: Where any item is not relevant to this agreement such item is marked N/A signifying "not applicable"
C23: Where standard clauses or alternatives are not entirely applicable to this agreement such amendments, modifications, corrections or supplements as will apply are given under each relevant clause heading and such amendments, modifications, corrections or supplements shall take precedence notwithstanding anything to the contrary contained in the abovementioned documents
C25: PREAMBLES FOR TRADES
C27: The General Preambles for Trades 2017 published by the Association of South African Quantity Surveyors shall be deemed to be incorporated in these bills of quantities and no claims arising from brevity of description of items fully described in the said General Preambles will be entertained
C29: Supplementary preambles and/or specifications are incorporated in these bills of quantities to satisfy the requirements of this project. Such supplementary preambles and/or specifications shall take precedence over the provisions of the General Preambles
C31: The contractor's prices for all items throughout these bills of quantities shall take account of and include where applicable for all of the obligations, requirements and specifications given in the General Preambles and in any supplementary preambles and/or specifications
C33: STRUCTURE OF THIS PRELIMINARIES BILL
C35: Section A : A recital of the headings of the individual clauses in the aforementioned JBCC Principal Building Agreement
C37: Section B : A recital of the headings of the individual clauses in the aforementioned JBCC General Preliminaries
C39: Section C : Any special clauses to meet the particular circumstances of the project
C41: PRICING OF PRELIMINARIES
C43: Should the contractor select Option A in the contract data for the adjustment of preliminaries, the amounts entered against the relevant items in these preliminaries are to be divided into one or more of the three categories provided namely fixed (F), value related (V) and time related (T)
C45: SECTION A: PRINCIPAL BUILDING AGREEMENT
C47: Interpretation (A1-A7)
A49: 1 | C49: Clause 1.0 - Definitions and interpretation | E49: CONT | F49: 0,00
C51: Pricing of bills of quantities | E51: CONT | F51: 0,0
C53: The contractor is to allow opposite each item for all costs in connection therewith. All prices to include, unless otherwise stated, for all materials, fabrication, conveyance and delivery, unloading, storing, unpacking, hoisting, labour, setting, fitting and fixing in position, cutting and waste (except where to be measured in accordance with the standard system of measurement), patterns, models and templates, plant, temporary works, returning of packaging, duties, taxes (other than Value Added Tax), imposts, establishment charges, overheads, profit and all other obligations arising out of this agreement. Value Added Tax (VAT) is to be separately stated on the summary page of these bills of quantities | E53: CONT | F53: 0,0
C55: Items left unpriced will be deemed to be covered in prices against other items throughout these bills of quantities and no claim for any extras arising out of the contractor's omission to price any item will be entertained | E55: CONT | F55: 0,0
C57: Prices for all construction equipment, temporary works, services and other items shall include for the supply, maintenance, operating cost and subsequent removal and making good as necessary | E57: CONT | F57: 0,0
C59: Abbreviated descriptions | E59: CONT | F59: 0,0
C61: The items in these bills of quantities utilise abbreviated descriptions. It is the intention that the abbreviated descriptions be fully described when read with the applicable measuring system and the relevant preambles and/or specifications. However, should the full intent and meaning of any description not be clear, the contractor shall, before submission of his tender, call for a written directive from the principal agent, failing which it shall be assumed that the contractor has allowed in his pricing for materials and workmanship in terms of international best practice | E61: CONT | F61: 0,0
C63: Legal status of contractor | E63: CONT | F63: 0,0
C65: If the contractor constitutes a joint venture, consortium or other unincorporated grouping of two or more persons then: | E65: CONT | F65: 0,0
C67: 1. These persons are deemed to be jointly and severally liable to the employer for the performance of this agreement | E67: CONT | F67: 0,0
C69: 2. These persons shall notify the employer of their leader who has assigned authority to bind the contractor and each of these persons | E69: CONT | F69: 0,0
C71: 3. The contractor shall not alter its composition or legal status without the prior written consent of the employer | E71: CONT | F71: 0,00
C73: F:............................. V:............................ T:............................ | E73: Item | F73: 1,00 | H73: =ROUND($F73*G73,2) -> 0
A75: 2 | C75: Clause 2.0 - Law, regulations and notices | E75: CONT | F75: 0,00
C77: F:............................. V:............................ T:............................ | E77: Item | F77: 1,00 | H77: =ROUND($F77*G77,2) -> 0
A79: 3 | C79: Clause 3.0 - Offer and acceptance F:............................. V:............................ T:............................ | E79: Item | F79: 1,00 | H79: =ROUND($F79*G79,2) -> 0
A81: 4 | C81: Clause 4.0 - Cession and assignment F:............................. V:............................ T:............................ | E81: Item | F81: 1,00 | H81: =ROUND($F81*G81,2) -> 0
A83: 5 | C83: Clause 5.0 - Documents | E83: CONT | F83: 0,00
C85: Value Added Tax | E85: CONT | F85: 0,0
C87: Provision is made in the summary page of these bills of quantities for the inclusion of Value Added Tax (VAT) | E87: CONT | F87: 0,0
C89: Priced document as specification Clause 5.4 is deemed to be deleted | E89: CONT | F89: 0,0
C91: The principal agent shall decide which portion of the priced document may be used as a specification of materials and goods or methods, if any | E91: CONT | F91: 0,0
C93: Electronic issue of drawings All drawings for this project will be issued electronically and the contractor shall be deemed to have received such drawings on the date that such drawings have been dispatched electronically [5.6] | E93: CONT | F93: 0,0
C95: F:............................. V:............................ T:............................ | E95: Item | F95: 1,00 | H95: =ROUND($F95*G95,2) -> 0
A97: 6 | C97: Clause 6.0 - Employer's agents | E97: CONT | F97: 0,00
C99: Principal Agent: KVS and ASSOCIATES Postal address: P.O. Box 5123 Mmabatho Code: 2735 Tel: 018 381 0038 Fax: E-mail: info@kvsa.co.za | E99: CONT | F99: 0,0
C101: The authority of the principal agent to issue contract instructions [17.1] and perform duties for specific aspects of the works is delegated to agents as follows [6.2]. This does not preclude the principal agent from issuing such contract instructions: | E101: CONT | F101: 0,0
C103: 1. Architect | E103: CONT | F103: 0,0
C105: 1.1 Duties [6.2] : The architect is responsible for the architectural design, functional design and quality inspection of the works | E105: CONT | F105: 0,0
C107: 1.2 Contract instructions [6.2; 17.1] : | E107: CONT | F107: 0,0
C109: 1.2.1 Rectification of discrepancies, errors in description or quantity or omission of items in the agreement other than in the JBCC Principal Building Agreement | E109: CONT | F109: 0,0
C111: 1.2.2 Alteration to design, standards or quantity of the works provided that such contract instructions shall not substantially change the scope of the works | E111: CONT | F111: 0,0
C113: 1.2.3 The site [13.0] | E113: CONT | F113: 0,0
C115: 1.2.4 Compliance with the law, regulations and bylaws [2.1] | E115: CONT | F115: 0,0
C117: 1.2.5 Provision and testing of samples of materials and goods and/or of finishes and assemblies of elements of the works | E117: CONT | F117: 0,0
C119: 1.2.6 Opening up of work for inspection, removal or re-execution [23.2.4; 26.4.2] | E119: CONT | F119: 0,0
C121: 1.2.7 Removal or re-execution of work | E121: CONT | F121: 0,0
C123: 1.2.8 Removal or substitution of any materials and goods | E123: CONT | F123: 0,0
C125: 1.2.9 Protection of the works | E125: CONT | F125: 0,0
C127: 1.2.10 Making good physical loss and repairing damage to the works [23.2.2] | E127: CONT | F127: 0,0
C129: 1.2.11 Rectification of defects [21.2] | E129: CONT | F129: 0,0
C131: 1.2.12 A list for practical completion specifying outstanding or defective work to be rectified to achieve practical completion, a list for completion and a list for final completion specifying outstanding or defective work to be rectified to achieve final completion | E131: CONT | F131: 0,0
C133: 1.2.13 Expenditure of budgetary allowances, prime cost amounts and provisional sums | E133: CONT | F133: 0,0
C135: 1.2.14 Appointment of a subcontractor [14.0; 15.0] | E135: CONT | F135: 0,0
C137: 1.2.15 Work by direct contractors [16.0] | E137: CONT | F137: 0,0
C139: 1.2.16 On suspension or termination, protection of the works, removal of construction equipment and surplus materials and goods [29.0] | E139: CONT | F139: 0,0
C141: 2. Quantity surveyor | E141: CONT | F141: 0,0
C143: 2.1 Duties [6.2] : The quantity surveyor is responsible for all measurements, valuations, financial assessments and all other quantity surveying and cost control functions of the works | E143: CONT | F143: 0,0
C145: 2.2 Contract instructions [6.2; 17.1] : | E145: CONT | F145: 0,0
C147: 2.2.1 No contract instructions delegated to the quantity surveyor | E147: CONT | F147: 0,0
C149: 3. Civil and structural engineer | E149: CONT | F149: 0,0
C151: 3.1 Duties [6.2] : The civil and structural engineer is responsible for all aspects of civil and structural engineering design and quality inspection of the works | E151: CONT | F151: 0,0
C153: 3.2 Contract instructions [6.2; 17.1] : | E153: CONT | F153: 0,0
C155: 3.2.1 Rectification of discrepancies, errors in description or quantity or omission of items in the agreement other than in the JBCC Principal Building Agreement | E155: CONT | F155: 0,0
C157: 3.2.2 Alteration to design, standards or quantity of the works provided that such contract instructions shall not substantially change the scope of the works | E157: CONT | F157: 0,0
C159: 3.2.3 The site [13.0] | E159: CONT | F159: 0,0
C161: 3.2.4 Compliance with the law, regulations and bylaws [2.1] | E161: CONT | F161: 0,0
C163: 3.2.5 Provision and testing of samples of materials and goods and/or of finishes and assemblies of elements of the works | E163: CONT | F163: 0,0
C165: 3.2.6 Opening up of work for inspection, removal or re-execution [23.2.4; 26.4.2] | E165: CONT | F165: 0,0
C167: 3.2.7 Removal or re-execution of work | E167: CONT | F167: 0,0
C169: 3.2.8 Removal or substitution of any materials and goods | E169: CONT | F169: 0,0
C171: 3.2.9 Protection of the works | E171: CONT | F171: 0,0
C173: 3.2.10 Making good physical loss and repairing damage to the works [23.2.2] | E173: CONT | F173: 0,0
C175: 3.2.11 Rectification of defects [21.2] | E175: CONT | F175: 0,0
C177: 3.2.12 A list for practical completion specifying outstanding or defective work to be rectified to achieve practical completion, a list for completion and a list for final completion specifying outstanding or defective work to be rectified to achieve final completion | E177: CONT | F177: 0,0
C179: 3.2.13 Expenditure of budgetary allowances, prime cost amounts and provisional sums | E179: CONT | F179: 0,0
C181: 4. Mechanical engineer | E181: CONT | F181: 0,0
C183: 4.1 Duties [6.2] : The mechanical engineer is responsible for all aspects of mechanical engineering design and quality inspection of the works and, where appointed by the employer for quantity surveying services in respect of the mechanical installations, for all measurements, valuations, financial assessments and all other quantity surveying and cost control functions | E183: CONT | F183: 0,0
C185: 4.2 Contract instructions [6.2; 17.1] : | E185: CONT | F185: 0,0
C187: 4.2.1 Rectification of discrepancies, errors in description or quantity or omission of items in the agreement other than in the JBCC Principal Building Agreement | E187: CONT | F187: 0,0
C189: 4.2.2 Alteration to design, standards or quantity of the works provided that such contract instructions shall not substantially change the scope of the works | E189: CONT | F189: 0,0
C191: 4.2.3 Compliance with the law, regulations and bylaws [2.1] | E191: CONT | F191: 0,0
C193: 4.2.4 Provision and testing of samples of materials and goods and/or of finishes and assemblies of elements of the works | E193: CONT | F193: 0,0
C195: 4.2.5 Opening up of work for inspection, removal or re-execution [23.2.4; 26.4.2] | E195: CONT | F195: 0,0
C197: 4.2.6 Removal or re-execution of work | E197: CONT | F197: 0,0
C199: 4.2.7 Removal or substitution of any materials and goods | E199: CONT | F199: 0,0
C201: 4.2.8 Protection of the works | E201: CONT | F201: 0,0
C203: 4.2.9 Making good physical loss and repairing damage to the works [23.2.2] | E203: CONT | F203: 0,0
C205: 4.2.10 Rectification of defects [21.2] | E205: CONT | F205: 0,0
C207: 4.2.11 A list for practical completion specifying outstanding or defective work to be rectified to achieve practical completion, a list for completion and a list for final completion specifying outstanding or defective work to be rectified to achieve final completion | E207: CONT | F207: 0,0
C209: 4.2.12 Expenditure of budgetary allowances, prime cost amounts and provisional sums | E209: CONT | F209: 0,0
C211: 5. Electrical engineer | E211: CONT | F211: 0,0
C213: 5.1 Duties [6.2] : The electrical engineer is responsible for all aspects of electrical engineering design and quality inspection of the works and, where appointed by the employer for quantity surveying services in respect of the electrical installations, for all measurements, valuations, financial assessments and all other quantity surveying and cost control functions | E213: CONT | F213: 0,0
C215: 5.2 Contract instructions [6.2; 17.1] : | E215: CONT | F215: 0,0
C217: 5.2.1 Rectification of discrepancies, errors in description or quantity or omission of items in the agreement other than in the JBCC Principal Building Agreement | E217: CONT | F217: 0,0
C219: 5.2.2 Alteration to design, standards or quantity of the works provided that such contract instructions shall not substantially change the scope of the works | E219: CONT | F219: 0,0
C221: 5.2.3 Compliance with the law, regulations and bylaws [2.1] | E221: CONT | F221: 0,0
C223: 5.2.4 Provision and testing of samples of materials and goods and/or of finishes and assemblies of elements of the works | E223: CONT | F223: 0,0
C225: 5.2.5 Opening up of work for inspection, removal or re-execution [23.2.4; 26.4.2] | E225: CONT | F225: 0,0
C227: 5.2.6 Removal or re-execution of work | E227: CONT | F227: 0,0
C229: 5.2.7 Removal or substitution of any materials and goods | E229: CONT | F229: 0,0
C231: 5.2.8 Protection of the works | E231: CONT | F231: 0,0
C233: 5.2.9 Making good physical loss and repairing damage to the works [23.2.2] | E233: CONT | F233: 0,0
C235: 5.2.10 Rectification of defects [21.2] | E235: CONT | F235: 0,0
C237: 5.2.11 A list for practical completion specifying outstanding or defective work to be rectified to achieve practical completion, a list for completion and a list for final completion specifying outstanding or defective work to be rectified to achieve final completion | E237: CONT | F237: 0,0
C239: 5.2.12 Expenditure of budgetary allowances, prime cost amounts and provisional sums | E239: CONT | F239: 0,0
C241: 6. Wet services engineer | E241: CONT | F241: 0,0
C243: 6.1 Duties [6.2] : The wet services engineer is responsible for all aspects of wet services engineering design and quality inspection of the works | E243: CONT | F243: 0,0
C245: 6.2 Contract instructions [6.2; 17.1] : | E245: CONT | F245: 0,0
C247: 6.2.1 Rectification of discrepancies, errors in description or quantity or omission of items in the agreement other than in the JBCC Principal Building Agreement | E247: CONT | F247: 0,0
C249: 6.2.2 Alteration to design, standards or quantity of the works provided that such contract instructions shall not substantially change the scope of the works | E249: CONT | F249: 0,0
C251: 6.2.3 Compliance with the law, regulations and bylaws [2.1] | E251: CONT | F251: 0,0
C253: 6.2.4 Provision and testing of samples of materials and goods and/or of finishes and assemblies of elements of the works | E253: CONT | F253: 0,0
C255: 6.2.5 Opening up of work for inspection, removal or re-execution [23.2.4; 26.4.2] | E255: CONT | F255: 0,0
C257: 6.2.6 Removal or re-execution of work | E257: CONT | F257: 0,0
C259: 6.2.7 Removal or substitution of any materials and goods | E259: CONT | F259: 0,0
C261: 6.2.8 Protection of the works | E261: CONT | F261: 0,0
C263: 6.2.9 Making good physical loss and repairing damage to the works [23.2.2] | E263: CONT | F263: 0,0
C265: 6.2.10 Rectification of defects [21.2] | E265: CONT | F265: 0,0
C267: 6.2.11 A list for practical completion specifying outstanding or defective work to be rectified to achieve practical completion, a list for completion and a list for final completion specifying outstanding or defective work to be rectified to achieve final completion | E267: CONT | F267: 0,0
C269: 6.2.12 Expenditure of budgetary allowances, prime cost amounts and provisional sums | E269: CONT | F269: 0,0
C271: 7. Fire consultant | E271: CONT | F271: 0,0
C273: 7.1 Duties [6.2] : The fire consultant is responsible for all aspects of rational fire design and quality inspection of the works | E273: CONT | F273: 0,0
C275: 7.2 Contract instructions [6.2; 17.1] : | E275: CONT | F275: 0,0
C277: 7.2.1 Rectification of discrepancies, errors in description or quantity or omission of items in the agreement other than in the JBCC Principal Building Agreement | E277: CONT | F277: 0,0
C279: 7.2.2 Alteration to design, standards or quantity of the works provided that such contract instructions shall not substantially change the scope of the works | E279: CONT | F279: 0,0
C281: 7.2.3 Compliance with the law, regulations and bylaws [2.1] | E281: CONT | F281: 0,0
C283: 7.2.4 Provision and testing of samples of materials and goods and/or of finishes and assemblies of elements of the works | E283: CONT | F283: 0,0
C285: 7.2.5 Opening up of work for inspection, removal or re-execution [23.2.4; 26.4.2] | E285: CONT | F285: 0,0
C287: 7.2.6 Removal or re-execution of work | E287: CONT | F287: 0,0
C289: 7.2.7 Removal or substitution of any materials and goods | E289: CONT | F289: 0,0
C291: 7.2.8 Protection of the works | E291: CONT | F291: 0,0
C293: 7.2.9 Making good physical loss and repairing damage to the works [23.2.2] | E293: CONT | F293: 0,0
C295: 7.2.10 Rectification of defects [21.2] | E295: CONT | F295: 0,0
C297: 7.2.11 A list for practical completion specifying outstanding or defective work to be rectified to achieve practical completion, a list for completion and a list for final completion specifying outstanding or defective work to be rectified to achieve final completion | E297: CONT | F297: 0,0
C299: 7.2.12 Expenditure of budgetary allowances, prime cost amounts and provisional sums | E299: CONT | F299: 0,0
C301: 8. Health and safety consultant | E301: CONT | F301: 0,0
C303: 8.1 Duties [6.2] : The health and safety consultant is responsible for all aspects of health and safety of the works. Without derogating from the generality thereof, the health and safety consultant will perform the following specific functions and duties in respect of the health and safety aspects of the works. He shall: | E303: CONT | F303: 0,00
C305: 8.1.1 Act as the employer's agent in terms of the Construction Regulations issued in terms of the Occupational Health and Safety Act,1993 as amended | E305: CONT | F305: 0,0
C307: 8.1.2 Prepare and update the health and safety specification for the works | E307: CONT | F307: 0,0
C309: 8.1.3 Agree with the contractor the health and safety plan for the works | E309: CONT | F309: 0,0
C311: 8.1.4 Carry out regular audits to ensure adherence to the safety plan and compliance with the act and regulations | E311: CONT | F311: 0,00
C313: 8.1.5 Stop the execution of the works where the agreed specification or plan is not adhered to | E313: CONT | F313: 0,00
C315: F:............................. V:............................ T:............................ | E315: Item | F315: 1,00 | H315: =ROUND($F315*G315,2) -> 0
A317: 7 | C317: Clause 7.0 - Design responsibility F:............................. V:............................ T:............................ | E317: Item | F317: 1,00 | H317: =ROUND($F317*G317,2) -> 0
C319: Insurances and securities (A8-A11)
A321: 8 | C321: Clause 8.0 - Works risk F:............................. V:............................ T:............................ | E321: Item | F321: 1,00 | H321: =ROUND($F321*G321,2) -> 0
A323: 9 | C323: Clause 9.0 - Indemnities F:............................. V:............................ T:............................ | E323: Item | F323: 1,00 | H323: =ROUND($F323*G323,2) -> 0
A325: 10 | C325: Clause 10.0 - Insurances F:............................. V:............................ T:............................ | E325: Item | F325: 1,00 | H325: =ROUND($F325*G325,2) -> 0
A327: 11 | C327: Clause 11.0 - Securities | E327: CONT | F327: 0,00
C329: Guarantee for payment | E329: CONT | F329: 0,0
C331: The employer shall provide to the contractor a guarantee for payment in the amount of N/A..................................................Rand (R......N/A.....................) [11.5.1]. The contractor shall consequently waive his lien or right of continuing possession of the works [11.10] | E331: CONT | F331: 0,0
C333: Extension of waiver of lien | E333: CONT | F333: 0,0
C335: The contractor shall ensure that a waiver of lien is included in all subcontracts and that the works executed on the site are kept free of all liens and other encumbrances at all times [11.10] | E335: CONT | F335: 0,0
C337: F:............................. V:............................ T:............................ | E337: Item | F337: 1,00 | H337: =ROUND($F337*G337,2) -> 0
C339: Execution (A12 - A17)
A341: 12 | C341: Clause 12.0 - Obligations of the parties | E341: CONT | F341: 0,00
C343: Office accommodation The contractor shall provide, maintain and remove on practical completion air conditioned office accommodation with suitable tables and chairs for meetings to be held on the site. Such offices shall be kept clean and fit for use at all times [12.2.18] | E343: CONT | F343: 0,0
C345: Notice board The contractor shall erect in a position approved by the principal agent, maintain and remove on practical completion a notice board recommended by the South African Institute of Architects and as approved by the principal agent listing the names and logos of the employer, the contractor and the professional consultants. No subcontractor or supplier notice boards may be erected unless permission is granted by the principal agent for such notice boards to be erected [12.2.18] | E345: CONT | F345: 0,0
C347: Statutory and other notices | E347: CONT | F347: 0,0
C349: The contractor shall submit and/or comply with all statutory and other notices that may be required by any local or other authority in order not to cause any delay to the commencement of the works by the contractor. The contractor shall pay all deposits or fees in this regard | E349: CONT | F349: 0,0
C351: It is, however, specifically recorded that the employer shall be responsible for the timeous approval of building plans by any local or other authorities and the payment of any fees or charges related thereto | E351: CONT | F351: 0,0
C353: F:............................. V:............................ T:............................ | E353: Item | F353: 1,00 | H353: =ROUND($F353*G353,2) -> 0
A355: 13 | C355: Clause 13.0 - Setting out F:............................. V:............................ T:............................ | E355: Item | F355: 1,00 | H355: =ROUND($F355*G355,2) -> 0
A357: 14 | C357: Clause 14.0 - Nominated subcontractors | E357: CONT | F357: 0,00
C359: F:............................. V:............................ T:............................ | E359: Item | F359: 1,00 | H359: =ROUND($F359*G359,2) -> 0
A361: 15 | C361: Clause 15.0 - Selected subcontractors | E361: CONT | F361: 0,00
C363: F:............................. V:............................ T:............................ | E363: Item | F363: 1,00 | H363: =ROUND($F363*G363,2) -> 0
A365: 16 | C365: Clause 16.0 - Direct contractors Attendance on direct contractors In respect of direct contractors the contractor shall: | E365: CONT | F365: 0,0
C367: 1. Designate an area for the direct contractor to establish a temporary office and workshop and storage of equipment and materials | E367: CONT | F367: 0,0
C369: 2. Allow the use of personnel welfare facilities, where provided | E369: CONT | F369: 0,0
C371: 3. Provide water, lighting and single phase electric power to a position within 50m of the place where the direct contract work is to be carried out, other than fuel or power for commissioning of any installation | E371: CONT | F371: 0,0
C373: 4. Permit the direct contractor to use erected scaffolding, hoisting facilities, etc provided by the contractor, in common with others having the like right, while it remains erected on the site [16.1] | E373: CONT | F373: 0,0
C375: F:............................. V:............................ T:............................ | E375: Item | F375: 1,00 | H375: =ROUND($F375*G375,2) -> 0
A377: 17 | C377: Clause 17.0 - Contract instructions Site instructions Instructions issued on site are to be recorded in a site instruction book which is to be supplied and maintained on site by the contractor | E377: CONT | F377: 0,00
C379: F:............................. V:............................ T:............................ | E379: Item | F379: 1,00 | H379: =ROUND($F379*G379,2) -> 0
C381: Completion (A18 - A24)
A383: 18 | C383: Clause 18.0 - Interim completion | E383: N/A | F383: 0,0
A385: 19 | C385: Clause 19.0 - Practical completion F:............................. V:............................ T:............................ | E385: Item | F385: 1,00 | H385: =ROUND($F385*G385,2) -> 0
A387: 20 | C387: Clause 20.0 - Completion in sections | E387: CONT | F387: 0,00
C389: F:............................. V:............................ T:............................ | E389: Item | F389: 1,00 | H389: =ROUND($F389*G389,2) -> 0
A391: 21 | C391: Clause 21.0 - Defects liability period and final completion | E391: CONT | F391: 0,00
C393: F:............................. V:............................ T:............................ | E393: Item | F393: 1,00 | H393: =ROUND($F393*G393,2) -> 0
A395: 22 | C395: Clause 22.0 - Latent defects liability period F:............................. V:............................ T:............................ | E395: Item | F395: 1,00 | H395: =ROUND($F395*G395,2) -> 0
A397: 23 | C397: Clause 23.0 - Revision of the date for practical completion Substitution of materials and goods The removal or substitution of any materials and goods which do not conform to the specification or the contract drawings shall not constitute grounds for the extension of the construction period nor for the adjustment of the contract value [17.1.8; 23.1 & 2] | E397: CONT | F397: 0,00
C399: F:............................. V:............................ T:............................ | E399: Item | F399: 1,00 | H399: =ROUND($F399*G399,2) -> 0
... 1649 more rows
